[Event "CZE-ch U16 Open 2023"]
[Site "Teplice"]
[Date "2023.03.16"]
[Round "7.10"]
[White "Tesar, Jakub"]
[Black "Slaby, Matej"]
[Result "0-1"]
[ECO "B17"]
[WhiteElo "1960"]
[BlackElo "1932"]
[Annotator "TA"]
[PlyCount "129"]
[EventDate "2023.03.09"]
[EventType "swiss"]
[EventCountry "CZE"]
[SourceTitle "playchess.com"]
[Source "ChessBase"]
[SourceQuality "1"]
[TimeControl "40/5400+30:1800+30"]

{[%evp 22,129,14,4,53,25,36,19,23,-5,9,27,32,12,12,10,14,17,19,19,7,-54,-45,-135,-119,-217,-219,-201,-181,-188,-121,-127,-127,-127,-128,-125,-120,-120,-121,-137,-128,-150,-145,-139,-120,-137,-104,-147,-112,-117,-109,-122,-111,-137,-119,-157,-119,-120,-120,-158,-118,-150,-111,-162,-165,-166,-164,-220,-216,-418,-411,-1111,-1093,-885,-786,-856,-792,-1614,-1472,-5116,-2879,-4544,-4831,-12764,-11904,-10776,-10101,-29963,-3507,-29957,-29957,-29974,-29975,-29971,-6037,-29979,-29980,-29986,-29984,-29988,-29989,-29989,-29990,-29991,-29989,-29992,-29993,-29993,-29994,-29995]} 1. e4 {[%emt 0:00:04]} c6 {[%emt 0:00:11]} 2. d4 {[%emt 0:00:09]} d5 {[%emt 0:00:10]} 3. Nd2 {[%emt 0:00:04][%cal Bb1d2,Bd2e4,Be4g5][%mdl 32]} dxe4 {[%emt 0:00:18]} 4. Nxe4 {[%emt 0:00:09]} Nd7 {[%emt 0:00:12]} 5. Ng5 {[%emt 0:00:14]} Ngf6 {[%emt 0:00:40]} 6. Bd3 {[%emt 0:00:21]} e6 {[%emt 0:01:00]} 7. N1f3 {[%emt 0:00:14]} Bd6 {[%emt 0:00:21]} 8. Qe2 {[%emt 0:00:19]} h6 {[%emt 0:01:19]} 9. Ne4 {[%emt 0:00:17]} Nxe4 {[%emt 0:01:09]} 10. Qxe4 {[%emt 0:00:09]} Qc7 {[%emt 0:01:00]} 11. Qg4 {[%emt 0:01:53]} Kf8 {[%emt 0:00:24]} 12. O-O {[%emt 0:00:17]} e5 {[%emt 0:02:32] B17: Caro-Kann: Modern Line (4...Nd7).} (12... b6 $11 {might be stronger.}) 13. Qh4 {[%emt 0:15:45]} (13. Re1 $5) 13... c5 {[%emt 0:20:51]} 14. dxc5 {[%emt 0:17:13]} Nxc5 {[%emt 0:00:30] [#] The position is equal.} 15. Be2 $146 {[%emt 0:11:04]} ({Predecessor:} 15. b4 Nxd3 16. cxd3 Bf5 17. Bb2 f6 18. Rac1 Qf7 19. Qg3 Qxa2 20. Nh4 {1-0 Boguslawski,O-Shkuran,D (2247) UKR-ch U18 Dnipropetrovsk 2002 (5)}) 15... Bd7 {[%emt 0:13:38]} 16. Be3 {[%emt 0:07:03]} Ne6 {[%emt 0:06:02]} 17. Rfd1 {[%emt 0:01:14]} Nf4 {[%emt 0:02:17]} 18. Bxf4 {[%emt 0:04:13]} exf4 {[%emt 0:00:08]} 19. Rd4 {[%emt 0:03:54]} g5 {[%emt 0:15:16]} 20. Qh5 {[%emt 0:00:32] [#] Rad1 would be deadly.} ({Much weaker is} 20. Nxg5 Be7 21. Rxd7 (21. Qxf4 $2 {too greedy.} Qxf4 $19) (21. Rad1 $2 Bxg5 22. Qh5 Bc6 $19) 21... Qxd7 $17) 20... Be7 {[%emt 0:00:43]} 21. Bc4 {[%emt 0:17:16]} ({Only move:} 21. Rad1 $1 $11 Bf5 22. c3) 21... Be8 $1 $15 {[%emt 0:01:30] Hoping for ...f5.} 22. Qg4 {[%emt 0:03:41]} (22. Nd2 $1 $15) 22... Bf6 $36 {[%emt 0:01:21][%mdl 2048] Black is on the roll.} 23. Re4 {[%emt 0:00:39]} (23. Bb3 $17 {was necessary.}) 23... Bd7 $19 {[%emt 0:00:51]} 24. Qh5 {[%emt 0:03:28][%csl Gc4][%cal Rh5f7]} Bf5 {[%emt 0:00:15] A strong pair of Bishops.} (24... Bxb2 $2 25. Qxf7#) 25. Rxf4 {[%emt 0:00:31]} Bg6 {[%emt 0:00:58]} (25... gxf4 $19 26. Qxf5 Bxb2) 26. Qxg6 $17 {[%emt 0:00:07]} fxg6 {[%emt 0:00:07]} 27. Rxf6+ {[%emt 0:00:04]} Kg7 {[%emt 0:00:15][%cal Bf8g7,Bg7f7,Bf7e6][%mdl 32]} 28. Rf7+ {[%emt 0:00:09]} Qxf7 $1 {[%emt 0:00:08]} 29. Bxf7 {[%emt 0:00:06]} Kxf7 {[%emt 0:00:03][%mdl 4096] Endgame KRR-KRN} 30. Kf1 {[%emt 0:00:34]} Rhe8 {[%emt 0:00:20]} 31. Nd4 {[%emt 0:00:52]} Rad8 {[%emt 0:00:22]} 32. c3 {[%emt 0:00:06]} a6 {[%emt 0:01:38]} 33. a4 {[%emt 0:01:10]} Rc8 {[%emt 0:01:17]} 34. Nc2 {[%emt 0:04:12]} Ke6 {[%emt 0:03:43] Black is more active.} 35. Ne3 {[%emt 0:00:51]} Red8 {[%emt 0:00:22]} 36. Re1 {[%emt 0:01:16]} Kf7 {[%emt 0:01:02]} 37. Re2 {[%emt 0:02:49]} h5 {[%emt 0:00:28]} 38. Ke1 {[%emt 0:01:20]} b5 {[%emt 0:02:12]} 39. axb5 {[%emt 0:00:21]} axb5 {[%emt 0:00:01]} 40. Rc2 {[%emt 0:00:59]} Ke6 {[%emt 0:01:16]} 41. Ke2 {[%emt 0:31:44]} Rc6 {[%emt 0:30:47]} 42. Rc1 {[%emt 0:03:24]} (42. f3 $17 {was worth a try.}) 42... Rcd6 {[%emt 0:02:19] ...Rd2+ is the strong threat.} 43. Rc2 {[%emt 0:00:00]} g4 {[%emt 0:00:00]} 44. f3 {[%emt 0:00:00]} (44. c4 $142) 44... gxf3+ $19 {[%emt 0:00:00]} 45. Kxf3 $2 {[%emt 0:00:00] [#]} (45. gxf3 {was the only defense.} Kf6 46. Nf1) 45... Rd2 $1 {[%emt 0:00:00] Strongly threatening ...Ke5.} 46. b4 {[%emt 0:00:00]} (46. Rc1 $142) 46... Rxc2 {[%emt 0:00:00]} 47. Nxc2 {[%emt 0:00:00] KR-KN} Rd3+ {[%emt 0:00:00]} 48. Ke4 {[%emt 0:00:00]} Rxc3 {[%emt 0:00:00]} 49. Nd4+ {[%emt 0:00:00]} Kf6 {[%emt 0:00:00]} 50. Nxb5 {[%emt 0:00:00]} Rc4+ {[%emt 0:00:00]} 51. Nd4 {[%emt 0:00:00]} Rxb4 {[%emt 0:00:00] aiming for ...Rb2.} 52. Ke3 {[%emt 0:00:00]} Rb2 {[%emt 0:00:00]} 53. Kf3 {[%emt 0:00:00]} g5 {[%emt 0:00:00]} 54. Kg3 {[%emt 0:00:50]} Rb4 {[%emt 0:00:00]} (54... h4+ $142 55. Kh3 Rb4 56. Nc6 Rc4 57. Na7 Rc3+ 58. Kg4 Rc2 59. g3 Rxh2 60. gxh4 gxh4 61. Nc8 Ke6 62. Na7 h3 63. Nc6 Kf6 64. Nd4 Rd2 65. Nf3 h2 66. Nxh2 Rxh2 67. Kf3 Ke5 68. Kg3 Re2 69. Kf3 Re4 70. Kg3 Rf4 71. Kg2 Kf5 72. Kh3 Rf3+ 73. Kg2 Kf4 74. Kh2 Rf2+ 75. Kh1 Kg4 76. Kg1 Kg3 77. Kh1 Rf1#) 55. Ne2 {[%emt 0:00:20]} Ke5 {[%emt 0:00:00]} 56. Kf3 {[%emt 0:00:35]} Rb3+ {[%emt 0:00:00]} 57. Kf2 {[%emt 0:00:08]} Ra3 {[%emt 0:00:00]} (57... h4 $142 58. Nc1 Rb1 59. Nd3+ Kd4 60. Ke2 g4 61. h3 Rb3 62. Ne1 Rb2+ 63. Kd1 Ke3 64. Kc1 Re2 65. Nc2+ Rxc2+ 66. Kxc2 g3 67. Kd1 Kf2 68. Kd2 Kxg2 69. Ke3 Kxh3 70. Kf3 g2 71. Kf2 Kh2 72. Kf3 g1=Q 73. Ke4 h3 74. Kf4 Qc5 75. Kg4 Kg2 76. Kf4 h2 77. Ke4 h1=Q 78. Kd3 Qd1+ 79. Ke4 Qf3#) 58. h3 {[%emt 0:01:12]} h4 {[%emt 0:00:00] Black mates.} 59. g3 {[%emt 0:00:33]} Ke4 {[%emt 0:00:00]} 60. gxh4 {[%emt 0:01:04]} gxh4 {[%emt 0:00:00]} ({Inferior is} 60... Rxh3 61. Ng3+ Kf4 62. Ne2+ Kg4 63. hxg5 $15) 61. Nc1 {[%emt 0:03:38]} Rxh3 {[%emt 0:00:00]} 62. Kg2 {[%emt 0:00:23]} Ra3 {[%emt 0:00:00]} 63. Kf2 {[%emt 0:00:26]} h3 {[%emt 0:00:00]} 64. Ne2 {[%emt 0:00:32]} Ra2 {[%emt 0:00:00]} 65. Kf1 {[%emt 0:00:10] Weighted Error Value: White=0.95/Black=0.43} 0-1

[Event "CZE-ch U16 Open 2023"]
[Site "Teplice"]
[Date "2023.03.16"]
[Round "7.11"]
[White "Davidek, Zdenek"]
[Black "Mrazek, Adam"]
[Result "1/2-1/2"]
[ECO "B31"]
[WhiteElo "1957"]
[BlackElo "1745"]
[Annotator "TA"]
[PlyCount "100"]
[EventDate "2023.03.09"]
[EventType "swiss"]
[EventCountry "CZE"]
[SourceTitle "playchess.com"]
[Source "ChessBase"]
[SourceQuality "1"]
[TimeControl "40/5400+30:1800+30"]

{[%evp 13,100,32,69,57,73,56,56,65,76,-38,37,16,39,9,2,0,39,37,58,0,0,0,6,0,40,-16,18,5,35,33,24,0,27,0,48,12,44,27,32,0,0,0,0,0,0,0,23,18,28,25,120,120,84,0,0,0,0,0,0,0,0,0,0,0,0,0,0,0,0,0,0,0,0,0,0,0,0,0,0,0,0,0,0,0,0,0,0,0,0]} 1. e4 {[%emt 0:00:02]} c5 {[%emt 0:01:05]} 2. Nf3 {[%emt 0:00:09]} Nc6 {[%emt 0:00:00]} 3. Bb5 {[%emt 0:00:06]} g6 {[%emt 0:00:00]} 4. Bxc6 {[%emt 0:00:05]} bxc6 {[%emt 0:00:03]} 5. O-O {[%emt 0:00:09]} Bg7 {[%emt 0:00:14]} 6. Re1 {[%emt 0:00:09]} e5 {[%emt 0:00:55] 6...Qc7 gains popularity.} 7. c3 {[%emt 0:03:30]} Qb6 {[%emt 0:04:28]} 8. Na3 {[%emt 0:11:52][%cal Od2d4] aiming for d4! B31: Sicilian: 2...Nc6 3 Bb5 g6.} Ba6 {[%emt 0:23:13]} 9. d3 {[%emt 0:04:04]} (9. b4 $5) 9... Ne7 {[%emt 0:09:36]} 10. Rb1 {[%emt 0:01:47] White is slightly better.} O-O {[%emt 0:04:45] [#]} 11. Nc2 $146 {[%emt 0:05:12]} (11. Be3 $1 $16) ({Predecessor:} 11. Be3 d5 12. c4 Rfe8 13. Qa4 d4 14. Bd2 Bc8 15. b4 cxb4 16. Rxb4 Qc7 17. Reb1 {0-1 Fossan,B (1942)-Holleland,S (2098) Bergen Grand Prix Nov 2019 (3)}) 11... Rfe8 {[%emt 0:10:43]} (11... d5 $15) 12. Be3 $14 {[%emt 0:06:11]} Qa5 {[%emt 0:11:59]} 13. Qd2 {[%emt 0:01:28]} d5 {[%emt 0:02:13]} 14. b4 {[%emt 0:13:48]} Qb5 {[%emt 0:12:05]} 15. c4 {[%emt 0:23:24]} ({Reject} 15. bxc5 Qxd3 16. Nb4 Qxd2 17. Nxd2 Bc8 $15) 15... dxc4 {[%emt 0:03:42]} 16. dxc4 {[%emt 0:00:07]} (16. bxc5 $14 c3 17. Qc1 (17. Qxc3 Qxd3 18. Qb2 Qc4 $11) 17... Qxd3 18. Nb4) 16... Qxc4 $11 {[%emt 0:04:20]} 17. Bxc5 {[%emt 0:00:04]} Rad8 {[%emt 0:06:02]} (17... Qxa2 $2 18. Ra1 Qc4 19. Ne3 Qxe4 20. Rxa6 $18) 18. Qc1 {[%emt 0:08:01]} Rd7 {[%emt 0:01:14]} ({Don't do} 18... Qxa2 19. Ra1 Qc4 20. Qb2 $14) 19. Na3 {[%emt 0:00:52]} (19. Qa3 $14) 19... Qxc1 {[%emt 0:00:46]} (19... Qxa2 {feels hotter.} 20. Ra1 Qe6 21. Nb1 Bb5) 20. Rbxc1 {[%emt 0:00:44]} Bb5 {[%emt 0:01:07]} 21. Nc4 {[%emt 0:00:51]} Nc8 {[%emt 0:01:32]} 22. Rc2 {[%emt 0:02:44]} f6 {[%emt 0:00:38][%cal Oc8b6]} 23. g4 {[%emt 0:01:31]} (23. Nb2 $5 {[%cal Ra2a4]}) 23... h6 {[%emt 0:00:36]} (23... Nb6 $11 {is superior.} 24. Bxb6 axb6) 24. h4 {[%emt 0:00:15]} g5 {[%emt 0:00:36]} 25. h5 {[%emt 0:00:41]} Bf8 {[%emt 0:00:26]} 26. Ra1 {[%emt 0:06:18]} Nb6 {[%emt 0:00:34]} 27. Bxb6 {[%emt 0:04:50]} axb6 {[%emt 0:00:18]} 28. a4 {[%emt 0:00:16]} Ra7 {[%emt 0:00:46]} 29. Nxb6 {[%emt 0:04:01]} Bd3 {[%emt 0:00:13]} 30. Rc3 {[%emt 0:00:34]} Bxe4 {[%emt 0:00:23] [#] Threatens to win with ...Rb8.} 31. Nd2 {[%emt 0:00:04]} Bd5 {[%emt 0:00:53]} (31... Bh7 $11 {keeps the balance.} 32. Rxc6 Rd8) 32. Nxd5 $16 {[%emt 0:00:40]} cxd5 {[%emt 0:00:03]} 33. Rd3 {[%emt 0:00:40]} ({Better is} 33. Rb3 $16) 33... Bxb4 {[%emt 0:00:24] The position is equal.} 34. Rxd5 {[%emt 0:00:06]} Bxd2 {[%emt 0:00:17]} 35. Rxd2 $11 {[%emt 0:00:01][%cal Bd5d2,Bd2a2,Ba2a3,Ba3b3,Bb3b6,Bb6h6][%mdl 4128] Endgame KRR-KRR} Rea8 {[%emt 0:00:30]} 36. Rda2 {[%emt 0:00:21]} Ra5 {[%emt 0:00:17]} 37. Kg2 {[%emt 0:00:09]} Kf7 {[%emt 0:00:35]} 38. Kf3 {[%emt 0:00:04]} Ke6 {[%emt 0:00:29]} 39. Ra3 {[%emt 0:02:52]} f5 {[%emt 0:01:09]} 40. R1a2 {[%emt 0:01:01]} fxg4+ {[%emt 0:00:46]} 41. Kxg4 {[%emt 0:01:02]} Rf8 {[%emt 0:02:12]} 42. Rb3 {[%emt 0:09:59]} Rf4+ {[%emt 0:04:47]} 43. Kg3 {[%emt 0:00:01]} Kf5 {[%emt 0:04:10]} 44. Rb6 {[%emt 0:00:43]} Raxa4 {[%emt 0:01:08]} 45. Rxa4 {[%emt 0:00:05]} Rxa4 {[%emt 0:00:06]} 46. Rxh6 {[%emt 0:00:10] KR-KR} Rg4+ {[%emt 0:02:02]} 47. Kf3 {[%emt 0:00:06][%cal Oh6f6] Rf6+! would kill now.} Rf4+ {[%emt 0:00:09]} 48. Kg3 {[%emt 0:00:16]} Rg4+ {[%emt 0:00:14]} 49. Kf3 {[%emt 0:00:04][%cal Oh6f6] White wants to mate with Rf6+!} Rf4+ {[%emt 0:00:06]} 50. Kg3 {[%emt 0:05:06]} Rg4+ {[%emt 0:00:10] Weighted Error Value: White=0.19 (very precise) /Black=0.17 (very precise)} 1/2-1/2

[Event "CZE-ch U16 Open 2023"]
[Site "Teplice"]
[Date "2023.03.16"]
[Round "7.12"]
[White "Sigut, Ondrej"]
[Black "Mohapl, Tomas"]
[Result "1/2-1/2"]
[ECO "D02"]
[WhiteElo "1804"]
[BlackElo "1946"]
[Annotator "TA"]
[PlyCount "86"]
[EventDate "2023.03.09"]
[EventType "swiss"]
[EventCountry "CZE"]
[SourceTitle "playchess.com"]
[Source "ChessBase"]
[SourceQuality "1"]
[TimeControl "40/5400+30:1800+30"]

{[%evp 11,86,7,12,-4,-4,-20,-26,-44,-29,-41,-36,-72,-45,-43,-47,-50,-52,-89,-87,-86,-58,-58,-62,-54,-54,-129,-83,-127,-90,-85,-85,-111,-112,-171,-165,-179,-12,-12,-8,-8,-8,-19,0,-22,0,-15,0,-22,-14,-14,-14,-29,-14,-7,0,0,0,0,2,2,10,8,33,30,88,88,88,74,74,5,94,88,74,74,80,0,5]} 1. d4 d5 2. Nf3 Nf6 3. g3 Bf5 4. Bg2 e6 5. O-O Be7 6. c4 c6 7. cxd5 {D11: Slav Defence: 3 Nf3 sidelines and 3...Nf6 4 e3 Bg4.} exd5 8. Bf4 (8. Qb3 $5 {[%cal Rb3b7]}) 8... O-O 9. Nbd2 {Black has an edge.} h6 10. Ne5 Nbd7 11. Ndf3 {[#]} Rc8 $146 ({Predecessor:} 11... Qb6 12. Bc1 Rfe8 13. b3 Bd6 14. Nxd7 Bxd7 15. Qc2 Ne4 16. a3 Bf5 17. Qb2 Be7 {0-1 Babic,D (1951)-Perhinig,R (2281) Feffernitz op 28th 2019 (2)}) 12. Qb3 Qb6 13. Qxb6 axb6 14. Rac1 Ra8 {[%cal Bc8a8,Ba8a4,Ba4b4][%mdl 32]} 15. a3 Ra4 16. Rfd1 b5 17. Nxd7 Nxd7 18. Ne5 (18. Bd2 $15) 18... b4 (18... Nxe5 $142 19. dxe5 Re8) 19. axb4 {[%cal Ob4b5]} Rxb4 20. Nxd7 Bxd7 21. Rd2 g5 22. Be3 (22. Bc7 $17 {was worth a try.}) 22... Ra8 $19 23. h4 Ra2 $2 {[#]} (23... Kg7 $19 24. hxg5 hxg5) 24. Bxd5 $1 $11 Raxb2 25. Rxb2 Rxb2 26. Bc4 Bf5 27. hxg5 hxg5 28. Kf1 Kf8 29. Rd1 b5 30. Bd3 Bxd3 31. Rxd3 {[%mdl 4096] Endgame KRB-KRB} Rb1+ 32. Kg2 b4 {Prevents Rc3} 33. d5 cxd5 34. Rxd5 f6 35. Kf3 Kf7 36. Rb5 b3 37. Bd4 Kg6 (37... Ke6 $11 {keeps the balance.}) 38. g4 $16 Kf7 39. Ke3 Ba3 40. Rb6 (40. Rb7+ $16 Ke6 41. Ke4 (41. Rb6+ Kd5 $11)) 40... Be7 (40... b2 $1 $11) 41. Kd2 Bd8 42. Rb5 Ke6 43. e4 (43. f3 $16) 43... Bc7 {Weighted Error Value: White=0.19 (very precise) /Black=0.22 (precise)} 1/2-1/2